Cogmind - Beta 11 X11 @@@ ROGUE MODE // 2022.03.06 @ 10:03:52 Player: LU-1G1 Result: Self-destructed Performance ------------- Evolutions (4) 2000 Regions Visited (12) 2400 Robots Destroyed (73) 365 Value Destroyed (1758) 1758 Prototype IDs (37) 740 Alien Tech Used (0) 0 Bonus (1021) 1021 TOTAL SCORE: 8284 Bonus ------- Follower Combat Kills 434 Aligned with FarCom 300 Met Data Miner 300 Friendly Fire -13 Cogmind --------- Core Integrity 504/850 Matter 234/300 Energy 3/100 System Corruption 0% Temperature Cool (0) Movement Flying (32) Location -6/Extension Parts ------- > --- POWER (1) -------- (None) > --- PROPULSION (4) --- Improved Flight Unit Surge Thruster Nuclear Pulse Thruster > --- UTILITY (8) ------ Medium Storage Unit Weight Redist. System Improved Signal Interpreter Hacking Suite Hacking Suite > --- WEAPON (2) ------- Improved Datajack Power Maul > --- INVENTORY (10) --- Cooled Aerolev Unit Cooled Aerolev Unit Cooled Aerolev Unit Advanced Terrain Scan Processor Cloak of Protection Improved Light Armor Plating Heavy Missile Launcher Peak State ------------ > --- POWER ------------ Fission Core > --- PROPULSION ------- Improved Flight Unit Improved Flight Unit Xenon Bombardment Thruster Xenon Bombardment Thruster > --- UTILITY ---------- Medium Storage Unit Weight Redist. System Improved Propulsion Shielding Hacking Suite Hacking Suite Hacking Suite Hacking Suite Improved System Shield > --- WEAPON ----------- Improved Datajack Power Maul > --- INVENTORY -------- Micro Nuclear Core Improved Flight Unit Xenon Bombardment Thruster Improved Signal Interpreter Advanced Terrain Scan Processor Seismic Detector Cloak of Protection Improved Light Armor Plating Heavy Missile Launcher Deploy-a-Sentry [Rating: 53] Favorites ----------- Power Ion Engine Engine Ion Engine Power Core Micro Nuclear Core Propulsion Light Treads Treads Light Treads Hover Unit Aerolev Unit Flight Unit Improved Flight Unit Utility High-capacity Storage Unit Device Weight Redist. System Storage High-capacity Storage Unit Processor Improved Targeting Computer Hackware Hacking Suite Protection Light Armor Plating Weapon Autogun Ballistic Gun Autogun Launcher Heavy Missile Launcher Impact Weapon Power Maul Special Melee Weapon Improved Datajack Build | -11 -10 -10 -10 -9 -8 -7 -7 -7 -7 -6 -6 -6 ------- Run | Scr Mat Min Exi Min Mat Fac Low Low Dat Pro Fac Ext Slots Evolved 8 | . . . . . 4 2 . . . . 2 . Power . | . . . . . . . . . . . . . Propulsion 2 | . . . . . 1 1 . . . . . . Utility 6 | . . . . . 3 1 . . . . 2 . Weapon . | . . . . . . . . . . . . . Parts Attached 79 | 6 8 1 . 2 40 4 . 3 . . 15 . Power 5 | . 1 . . . 2 . . . . . 2 . Engine 2 | . 1 . . . 1 . . . . . . . Core 3 | . . . . . 1 . . . . . 2 . Reactor . | . . . . . . . . . . . . . Propulsion 28 | 2 1 . . . 19 1 . . . . 5 . Treads 16 | 2 1 . . . 13 . . . . . . . Leg . | . . . . . . . . . . . . . Wheel . | . . . . . . . . . . . . . Hover 1 | . . . . . 1 . . . . . . . Flight 11 | . . . . . 5 1 . . . . 5 . Utility 29 | 2 2 1 . . 15 3 . 1 . . 5 . Device 6 | 1 . . . . 2 1 . 1 . . 1 . Storage 6 | 1 2 . . . 2 1 . . . . . . Processor 3 | . . . . . 2 . . . . . 1 . Hackware 6 | . . . . . 3 . . . . . 3 . Protection 8 | . . 1 . . 6 1 . . . . . . Artifact . | . . . . . . . . . . . . . Weapon 17 | 2 4 . . 2 4 . . 2 . . 3 . Energy Gun . | . . . . . . . . . . . . . Energy Cannon . | . . . . . . . . . . . . . Ballistic Gun 12 | 2 4 . . 2 4 . . . . . . . Ballistic Cannon . | . . . . . . . . . . . . . Launcher 1 | . . . . . . . . . . . 1 . Special Weapon . | . . . . . . . . . . . . . Impact Weapon 2 | . . . . . . . . 1 . . 1 . Slashing Weapon . | . . . . . . . . . . . . . Piercing Weapon . | . . . . . . . . . . . . . Special Melee Weapon 2 | . . . . . . . . 1 . . 1 . Unidentified Prototypes 1 | . . . . . 1 . . . . . . . Parts Lost 22 | . 2 . . 1 7 . . . . . 12 . Power 3 | . . . . . 1 . . . . . 2 . Propulsion 7 | . . . . . 2 . . . . . 5 . Utility 9 | . 1 . . . 3 . . . . . 5 . Weapon 3 | . 1 . . 1 1 . . . . . . . Highest Loss Streak 6 | . 1 . . 1 3 . . . . . 6 . To Critical Strikes . | . . . . . . . . . . . . . Average Slot Usage (%) 93 | . 87 93 100 100 92 84 84 96 100 100 91 66 Engine 10 | . 13 14 14 14 8 . . . . . . . Treads 23 | . 28 28 28 28 25 . . . . . . . Flight 3 | . . . . . 1 30 30 30 30 30 23 20 Device 2 | . 3 . . . 2 1 . 5 7 7 8 6 Storage 11 | . 14 14 14 14 9 7 7 7 7 7 6 6 Processor 5 | . . . . . 15 . . . . . . 6 Hackware 3 | . . . . . . 23 23 23 23 23 29 13 Protection 9 | . . 7 14 14 13 13 15 9 7 7 3 . Ballistic Gun 20 | . 28 28 28 28 16 . . . . . . . Naked Turns . | . . . . . . . . . . . . . Heaviest Build 57 | 10 51 54 54 55 57 21 21 21 21 21 26 14 Greatest Support 60 | 40 40 40 40 40 60 28 22 28 28 28 28 20 Greatest Overweight (x) 10 | 1 1 1 1 1 10 . . . . . 1 . Average Overweight (x) . | . . 1 1 1 . . . . . . . . Largest Inventory Capacity 20 | 8 20 20 20 20 20 20 10 10 10 10 10 10 Average Capacity 17 | 7 14 20 20 20 20 10 10 10 10 10 10 10 Most Carried 20 | 8 13 14 19 20 20 13 10 10 10 10 10 7 Average Carried 15 | 5 9 13 15 18 19 10 9 10 10 9 9 7 Final Capacity 20 | 8 20 20 20 20 20 10 10 10 10 10 10 10 Final Carried 20 | 8 13 14 19 20 14 10 10 10 10 10 7 7 Class Distribution -------------------- 80% | Mutant 9% | Hacker-Sprinter 6% | Scavenger-Mutant 4% | Hacker-Mutant Dominant Class ---------------- Mutant | -10/Materials Mutant | -10/Mines Mutant | -10/Exiles Mutant | -9/Mines Mutant | -8/Materials Hacker-Sprinter | -7/Factory Hacker-Sprinter | -7/Lower Caves Hacker-Sprinter | -7/Lower Caves Hacker-Sprinter | -7/Data Miner Hacker-Sprinter | -6/Proximity Caves Hacker-Mutant | -6/Factory Hacker-Sprinter | -6/Extension Resources | -11 -10 -10 -10 -9 -8 -7 -7 -7 -7 -6 -6 -6 ----------- Run | Scr Mat Min Exi Min Mat Fac Low Low Dat Pro Fac Ext Matter Collected 2410 | 256 533 212 . 216 999 . . 114 . . 80 . Remotely . | . . . . . . . . . . . . . Salvage Created 2037 | 13 677 75 . 170 889 . . . . . 213 . Parts 156 | 5 44 10 . 5 78 . . . . . 14 . Haulers Intercepted 6 | . 1 . . . 4 . . . . . 1 . Recyclers Shooed 1 | . 1 . . . . . . . . . . . Parts Field Recycled . | . . . . . . . . . . . . . Retrieved Matter . | . . . . . . . . . . . . . Parts Self-Destructed 17 | . . . . . . . . . . 17 . . Prevented . | . . . . . . . . . . . . . Kills | -11 -10 -10 -10 -9 -8 -7 -7 -7 -7 -6 -6 -6 ------- Run | Scr Mat Min Exi Min Mat Fac Low Low Dat Pro Fac Ext Combat Hostiles Destroyed 53 | . 17 3 . 5 21 . . . . . 7 . Melee 2 | . . . . . . . . . . . 2 . Guns 46 | . 17 3 . 5 21 . . . . . . . AOE 3 | . . . . . . . . . . . 3 . Classes Destroyed 12 | 1 5 . . 1 5 . . . . . . . Worker 2 | . . . . . 2 . . . . . . . Builder 3 | . . . . . 3 . . . . . . . Tunneler 1 | 1 . . . . . . . . . . . . Hauler 6 | . 1 . . . 4 . . . . . 1 . Recycler 1 | . . . . . 1 . . . . . . . Operator 5 | . 2 . . . 2 . . . . . 1 . Watcher 3 | . 2 . . . 1 . . . . . . . Swarmer 23 | . 6 3 . . 7 . . . . . 7 . Grunt 24 | . 11 . . 4 9 . . . . . . . Sentry 3 | . . . . . 3 . . . . . . . Hunter 2 | . . . . . 2 . . . . . . . Assembled 1 | . . . . 1 . . . . . . . . Best Kill Streak 7 | 1 5 3 . 3 7 . . . . . 5 . Combat Bots Only 6 | . 5 3 . 3 6 . . . . . 4 . Max Kills in Single Turn 2 | 1 2 1 . 1 2 . . . . . 1 . Gunslinging 1 | . 1 . . . . . . . . . . . Exploded 1 | . . . . . . . . . . . 1 . Melee 1 | . . . . . . . . . . . 1 . Uniques/NPCs Destroyed . | . . . . . . . . . . . . . Combat | -11 -10 -10 -10 -9 -8 -7 -7 -7 -7 -6 -6 -6 -------- Run | Scr Mat Min Exi Min Mat Fac Low Low Dat Pro Fac Ext Damage Taken 3740 | . 748 75 . 222 1415 . 56 32 . 295 897 . Core 790 | . 148 6 . 10 128 . 39 . . 113 346 . Absorbed by Shields . | . . . . . . . . . . . . . Redirected to Shielding 170 | . . . . . 70 . . . . 63 37 . Regen/Repaired (Parts) 390 | . 115 . . . 275 . . . . . . . Core Remaining (%) 72 | 100 . . . 34 76 . . . . 78 . . Volleys Fired 184 | 5 70 8 . 18 79 . . . . . 4 . Largest 2 | 2 2 2 . 2 2 . . . . . 1 . Hottest 53 | 40 46 46 . 46 53 . . . . . 39 . Shots Fired 351 | 10 139 16 . 34 148 . . . . . 4 . Gun 347 | 10 139 16 . 34 148 . . . . . . . Cannon . | . . . . . . . . . . . . . Launcher 4 | . . . . . . . . . . . 4 . Special . | . . . . . . . . . . . . . Kinetic 347 | 10 139 16 . 34 148 . . . . . . . Thermal . | . . . . . . . . . . . . . Explosive 4 | . . . . . . . . . . . 4 . Electromagnetic . | . . . . . . . . . . . . . Robot Hit Streak 17 | 3 15 5 . 13 17 . . . . . 1 . Robot Miss Streak 7 | 1 7 3 . 4 7 . . . . . 3 . Penetration Max . | . . . . . . . . . . . . . Secondary Targets 3 | . 2 1 . . . . . . . . . . Max Gunslinging Chain 1 | . 1 1 . . . . . . . . . . Shots Hit Robots 257 | 6 87 9 . 21 120 . . 2 . . 12 . Core Hits 157 | 2 30 5 . 7 105 . . . . . 8 . Critical Kills . | . . . . . . . . . . . . . Critical Parts Destroyed 2 | . . . . . 1 . . . . . 1 . Critical Strikes 2 | . . . . . 1 . . . . . 1 . Destroy 1 | . . . . . 1 . . . . . . . Smash 1 | . . . . . . . . . . . 1 . Melee Attacks 23 | . . . . . . . . 2 . . 21 . Impact 21 | . . . . . . . . . . . 21 . Slashing . | . . . . . . . . . . . . . Piercing . | . . . . . . . . . . . . . Sneak Attacks 4 | . . . . . . . . 2 . . 2 . Combat Hostiles . | . . . . . . . . . . . . . Follow-up Attacks . | . . . . . . . . . . . . . Damage Inflicted 5016 | 95 1305 148 . 312 2120 . . . . . 1036 . Guns 3925 | 95 1301 135 . 312 2082 . . . . . . . Cannons . | . . . . . . . . . . . . . Explosions 303 | . . . . . . . . . . . 303 . Melee 733 | . . . . . . . . . . . 733 . Ramming 55 | . 4 13 . . 38 . . . . . . . Kinetic 3925 | 95 1301 135 . 312 2082 . . . . . . . Thermal . | . . . . . . . . . . . . . Explosive 303 | . . . . . . . . . . . 303 . Electromagnetic . | . . . . . . . . . . . . . Impact 733 | . . . . . . . . . . . 733 . Slashing . | . . . . . . . . . . . . . Piercing . | . . . . . . . . . . . . . Highest Corruption 4 | . 4 4 4 4 2 . . . . . . . Average Corruption 3 | . 3 4 4 4 1 . . . . . . . Corruption Purged 2 | . . . . . 2 . . . . . . . Corruption Blocked . | . . . . . . . . . . . . . Effects 68 | . 21 13 14 11 9 . . . . . . . Message Errors 18 | . 6 3 4 4 1 . . . . . . . Matter Fused 15 | . 3 5 2 3 2 . . . . . . . Heat Flow Errors 8 | . 2 1 2 1 2 . . . . . . . Energy Discharges 9 | . 3 1 3 1 1 . . . . . . . Data Loss (minor) 9 | . 3 1 3 1 1 . . . . . . . Data Loss (major) 4 | . 1 2 . . 1 . . . . . . . Misfires 1 | . 1 . . . . . . . . . . . Weapon Failures 4 | . 2 . . 1 1 . . . . . . . Overload Shots . | . . . . . . . . . . . . . Overflow Damage 166 | . . . . . . . . . . . 166 . Projectiles . | . . . . . . . . . . . . . Explosions 48 | . . . . . . . . . . . 48 . Melee 118 | . . . . . . . . . . . 118 . Knockbacks . | . . . . . . . . . . . . . Impact . | . . . . . . . . . . . . . Kinetic . | . . . . . . . . . . . . . Secondary . | . . . . . . . . . . . . . Self-Inflicted Damage 7 | . . . . . . . . . . . 7 . Shots 1 | . . . . . . . . . . . 1 . Rammed 10 | . 3 3 . . 4 . . . . . . . Targets Rammed 11 | . 3 3 . . 5 . . . . . . . Kicked . | . . . . . . . . . . . . . Crushed 1 | . . . . . 1 . . . . . . . Highest Temperature 236 | . 236 84 214 112 165 . 2 3 . 50 . . Average Temperature 32 | . 23 18 101 22 42 . 2 3 . 28 . . Received Heat Transfer 1063 | . 276 . . 72 387 . 9 12 . 118 189 . Siege Activations . | . . . . . . . . . . . . . Robots Corrupted . | . . . . . . . . . . . . . Combat Hostiles . | . . . . . . . . . . . . . Parts Fried 1 | . . . . . . . . . . . 1 . Impact Corruptions 5 | . . . . . . . . . . . 5 . Robots Melted . | . . . . . . . . . . . . . Combat Hostiles . | . . . . . . . . . . . . . Parts Melted 1 | . . . . . 1 . . . . . . . Heat Transferred . | . . . . . . . . . . . . . Parts Sabotaged . | . . . . . . . . . . . . . Parts Stolen 1 | . . . . . . . 1 . . . . . Parts Stripped . | . . . . . . . . . . . . . Power Chain Reactions . | . . . . . . . . . . . . . Missiles Intercepted . | . . . . . . . . . . . . . Alert | -11 -10 -10 -10 -9 -8 -7 -7 -7 -7 -6 -6 -6 ------- Run | Scr Mat Min Exi Min Mat Fac Low Low Dat Pro Fac Ext Peak Influence 504 | 5 319 164 . 170 356 161 . . . . 504 224 Initial 233 | . 3 69 . . 27 161 . . . . 233 224 Average 148 | 1 161 58 . 79 167 161 . . . . 365 224 Maximum Alert Level 2 | . 1 . . . 1 . . . . . 2 1 Low Security (%) 71 | 100 68 100 . 100 63 100 . . . . . . Level 1 26 | . 31 . . . 36 . . . . . 63 100 Level 2 1 | . . . . . . . . . . . 36 . Level 3 . | . . . . . . . . . . . . . Level 4 . | . . . . . . . . . . . . . Level 5 . | . . . . . . . . . . . . . High Security . | . . . . . . . . . . . . . Max Security . | . . . . . . . . . . . . . Squads Dispatched 19 | . 3 . . 1 6 1 . . . 1 7 . Investigation 6 | . 1 . . 1 1 1 . . . . 2 . Extermination . | . . . . . . . . . . . . . Reinforcement 11 | . 2 . . . 4 . . . . . 5 . Assault 1 | . . . . . . . . . . 1 . . Garrison 1 | . . . . . 1 . . . . . . . Intercept . | . . . . . . . . . . . . . Searches Triggered . | . . . . . . . . . . . . . Data Miner Redirects 1 | . . . . . . . . . . . 1 . Construction Impeded 1 | . . . . . . . . . . . 1 . Haulers Reinforced 1 | . . . . . . . . . . . 1 . Active Scanning Responses . | . . . . . . . . . . . . . Cargo Convoy Interrupts . | . . . . . . . . . . . . . Stealth | -11 -10 -10 -10 -9 -8 -7 -7 -7 -7 -6 -6 -6 --------- Run | Scr Mat Min Exi Min Mat Fac Low Low Dat Pro Fac Ext Distress Signals 5 | . 1 . . . 4 . . . . . . . Communications Jammed . | . . . . . . . . . . . . . Distress Signals . | . . . . . . . . . . . . . Times Spotted 153 | . 31 3 . 11 39 . 14 1 . 20 34 . Peak Tracking Total 17 | . 5 3 . 4 6 . 8 1 . 14 17 . Tactical Retreats 11 | . 2 . . 2 1 . 2 . . 3 1 . Traps | -11 -10 -10 -10 -9 -8 -7 -7 -7 -7 -6 -6 -6 ------- Run | Scr Mat Min Exi Min Mat Fac Low Low Dat Pro Fac Ext Traps Triggered 6 | . 4 . . . 2 . . . . . . . Indirectly . | . . . . . . . . . . . . . Trap Hack Attempts . | . . . . . . . . . . . . . Triggered . | . . . . . . . . . . . . . Disarmed . | . . . . . . . . . . . . . Reprogrammed . | . . . . . . . . . . . . . Reused . | . . . . . . . . . . . . . Traps Extracted . | . . . . . . . . . . . . . Installed . | . . . . . . . . . . . . . Triggered . | . . . . . . . . . . . . . Machines | -11 -10 -10 -10 -9 -8 -7 -7 -7 -7 -6 -6 -6 ---------- Run | Scr Mat Min Exi Min Mat Fac Low Low Dat Pro Fac Ext Machines Disabled 1 | . . . . . 1 . . . . . . . Max in Single Turn 1 | . . . . . 1 . . . . . . . Garrison Access 1 | . . . . . 1 . . . . . . . Machines Sabotaged . | . . . . . . . . . . . . . Garrisons Compromised . | . . . . . . . . . . . . . Overloaded Fab Kills . | . . . . . . . . . . . . . Hacking | -11 -10 -10 -10 -9 -8 -7 -7 -7 -7 -6 -6 -6 --------- Run | Scr Mat Min Exi Min Mat Fac Low Low Dat Pro Fac Ext Machines Accessed 16 | . 3 . 2 1 4 1 . . 3 . 2 . Terminals 4 | . 2 . . . 1 1 . . . . . . Fabricators 1 | . . . . . . . . . . . 1 . Repair Stations 3 | . 1 . . . 1 . . . . . 1 . Recycling Units . | . . . . . . . . . . . . . Scanalyzers 1 | . . . . . 1 . . . . . . . Garrison Access 1 | . . . . . 1 . . . . . . . Total Hacks 61 | . 8 . 2 1 16 2 . . 26 . 6 . Successful 49 | . 4 . 2 1 13 . . . 26 . 3 . Failed 12 | . 4 . . . 3 2 . . . . 3 . Catastrophic 1 | . . . . . . 1 . . . . . . Database Lockouts . | . . . . . . . . . . . . . Manual 8 | . 4 . 1 . 1 2 . . . . . . Terminals 11 | . 5 . . . 4 2 . . . . . . Fabricators 3 | . . . . . . . . . . . 3 . Repair Stations 13 | . 3 . . . 7 . . . . . 3 . Recycling Units . | . . . . . . . . . . . . . Scanalyzers 4 | . . . . . 4 . . . . . . . Garrison Access 1 | . . . . . 1 . . . . . . . Terminal Hacks 33 | . 2 . 2 1 2 . . . 26 . . . Record 7 | . . . 1 . . . . . 6 . . . Part Schematic 12 | . . . . . . . . . 12 . . . Robot Schematic 5 | . . . . . . . . . 5 . . . Prototype ID Bank 4 | . 1 . . . . . . . 3 . . . Open Door 1 | . . . . 1 . . . . . . . . Branch Access Points 1 | . 1 . . . . . . . . . . . Hauler Manifests 1 | . . . . . 1 . . . . . . . Zone Layout 1 | . . . . . 1 . . . . . . . EX-Prototype ID Bank 1 | . . . 1 . . . . . . . . . Fabricator Hacks 3 | . . . . . . . . . . . 3 . Network Status 1 | . . . . . . . . . . . 1 . Load Schematic 1 | . . . . . . . . . . . 1 . Build 1 | . . . . . . . . . . . 1 . Repair Station Hacks 8 | . 2 . . . 6 . . . . . . . Scan Component 4 | . 1 . . . 3 . . . . . . . Repair 4 | . 1 . . . 3 . . . . . . . Recycling Unit Hacks . | . . . . . . . . . . . . . Scanalyzer 4 | . . . . . 4 . . . . . . . Insert Component 2 | . . . . . 2 . . . . . . . Analyze 2 | . . . . . 2 . . . . . . . Garrison Access Hacks 1 | . . . . . 1 . . . . . . . Seal Access 1 | . . . . . 1 . . . . . . . Unauthorized Hacks . | . . . . . . . . . . . . . Terminals . | . . . . . . . . . . . . . Fabricators . | . . . . . . . . . . . . . Repair Stations . | . . . . . . . . . . . . . Recycling Units . | . . . . . . . . . . . . . Scanalyzers . | . . . . . . . . . . . . . Garrison Access . | . . . . . . . . . . . . . Data Cores Recovered . | . . . . . . . . . . . . . Used . | . . . . . . . . . . . . . Hacking Detections 9 | . 3 . . . 3 1 . . . . 2 . Full Trace Events 4 | . 1 . . . . 1 . . . . 2 . Feedback Events . | . . . . . . . . . . . . . Feedback Blocked . | . . . . . . . . . . . . . Robot Schematics Acquired 5 | . . . . . . . . . 5 . . . Robots Built . | . . . . . . . . . . . . . Authchips . | . . . . . . . . . . . . . Time . | . . . . . . . . . . . . . Total Robot Build Rating . | . . . . . . . . . . . . . Part Schematics Acquired 14 | . . . . . 2 . . . 12 . . . Parts Built . | . . . . . . . . . . . . . Authchips . | . . . . . . . . . . . . . Time 76 | . . . . . . . . . . . 76 . Total Part Build Rating . | . . . . . . . . . . . . . Parts Repaired 4 | . 1 . . . 3 . . . . . . . Time 104 | . 26 . . . 78 . . . . . . . Parts Recycled . | . . . . . . . . . . . . . Recycled Matter . | . . . . . . . . . . . . . Retrieved Matter . | . . . . . . . . . . . . . Retrieved Components . | . . . . . . . . . . . . . Parts Scanalyzed 2 | . . . . . 2 . . . . . . . Part Schematics Acquired 2 | . . . . . 2 . . . . . . . Parts Damaged . | . . . . . . . . . . . . . Bothacking | -11 -10 -10 -10 -9 -8 -7 -7 -7 -7 -6 -6 -6 ------------ Run | Scr Mat Min Exi Min Mat Fac Low Low Dat Pro Fac Ext Used RIF Installer . | . . . . . . . . . . . . . Robots Hacked 1 | . . . . . . . . 1 . . . . Non-combat 1 | . . . . . . . . 1 . . . . Combat . | . . . . . . . . . . . . . Robot Hacks Applied 2 | . . . . . . . . 2 . . . . parse_system 2 | . . . . . . . . 2 . . . . Relay Couplers Released . | . . . . . . . . . . . . . Fabnet Peak Effective % . | . . . . . . . . . . . . . Robots Rewired . | . . . . . . . . . . . . . Allies Hacked . | . . . . . . . . . . . . . Hacks Repelled . | . . . . . . . . . . . . . Allies | -11 -10 -10 -10 -9 -8 -7 -7 -7 -7 -6 -6 -6 -------- Run | Scr Mat Min Exi Min Mat Fac Low Low Dat Pro Fac Ext Total Allies 4 | . . . . 3 . . . . . 1 . . Largest Group 3 | . . . . 3 . . . . . 1 . . Highest-Rated Group 96 | . . . . 40 . . . . . 96 . . Highest-Rated Ally 96 | . . . . 16 . . . . . 96 . . Total Orders . | . . . . . . . . . . . . . Ally Attacks 77 | . . . . 35 16 . . . . 16 10 . Total Damage 2352 | . . . . 336 815 . . . . 660 541 . Kills 26 | . . . . 8 7 . . . . 8 3 . Allies Corrupted . | . . . . . . . . . . . . . Allies Melted 1 | . . . . . . . . . . . 1 . Turrets Deployed 3 | . . . . . 1 1 . . . . 1 . Intel | -11 -10 -10 -10 -9 -8 -7 -7 -7 -7 -6 -6 -6 ------- Run | Scr Mat Min Exi Min Mat Fac Low Low Dat Pro Fac Ext Robot Analysis Total . | . . . . . . . . . . . . . Derelict Logs Recovered 6 | . . 1 . 1 . . 1 1 . 2 . . Drone Launches . | . . . . . . . . . . . . . Drone Recoveries . | . . . . . . . . . . . . . Exploration | -11 -10 -10 -10 -9 -8 -7 -7 -7 -7 -6 -6 -6 ------------- Run | Scr Mat Min Exi Min Mat Fac Low Low Dat Pro Fac Ext Turns Passed 5654 | 102 1086 540 661 615 1999 62 95 86 23 117 236 32 Spaces Moved 3736 | 46 479 213 274 198 886 164 303 257 75 362 382 97 Core 7 | 7 . . . . . . . . . . . . Treads 2055 | 39 479 213 274 198 852 . . . . . . . Legs . | . . . . . . . . . . . . . Wheels . | . . . . . . . . . . . . . Hover . | . . . . . . . . . . . . . Flight 1674 | . . . . . 34 164 303 257 75 362 382 97 Fastest Speed 29 | 50 160 240 240 240 160 31 31 31 31 31 29 32 Average Speed 120 | 144 172 240 240 240 164 31 31 31 31 31 31 32 Slowest Speed 780 | 160 240 240 240 240 780 31 31 31 31 31 107 32 Overloaded Moves . | . . . . . . . . . . . . . Propulsion Burnouts . | . . . . . . . . . . . . . Robots Hopped 20 | . . . . . 1 3 1 1 . 7 7 . Cave-ins Triggered . | . . . . . . . . . . . . . Exploration Rate (%) 44 | 4 78 61 69 53 56 7 50 46 68 61 13 18 Regions Visited 12 Branch Regions 8 Pre-discovered Areas 3 | . . 1 1 . . . . . 1 . . . Known Exits Taken 2 | . 1 . . . . . . . . . 1 . Unknown Exits Taken 10 | 1 . 1 1 1 1 1 1 1 1 1 . . Scrap Searched 12 | . . 2 . 1 . . 1 7 . 1 . . Spaces Dug 2 | . . . . . . . . . . . 2 . Terrain Destroyed 30 | . . . . . . . . . . . 30 . Melee 2 | . . . . . . . . . . . 2 . Projectile . | . . . . . . . . . . . . . AOE 28 | . . . . . . . . . . . 28 . Terrain Rammed . | . . . . . . . . . . . . . Walls Destroyed . | . . . . . . . . . . . . . Machines Disabled . | . . . . . . . . . . . . . Actions | -11 -10 -10 -10 -9 -8 -7 -7 -7 -7 -6 -6 -6 --------- Run | Scr Mat Min Exi Min Mat Fac Low Low Dat Pro Fac Ext Total 4508 | 69 627 225 278 312 1292 172 302 260 74 360 440 97 Wait 388 | 5 54 . . 90 221 . . . . 2 16 . Move 3689 | 45 478 212 273 197 883 157 300 254 74 350 369 97 Hop 15 | . . . . . 1 3 1 1 . 4 5 . Pick Up 57 | 8 7 1 5 3 21 3 1 . . 2 6 . Fast Attach 30 | 6 2 1 . . 15 . . 2 . . 4 . Attach 28 | . 1 . . 1 17 2 . . . . 7 . Detach 10 | . 1 . . . 9 . . . . . . . Swap 21 | . 5 . . 1 8 2 . 1 . . 4 . Drop 52 | . 6 . . 2 33 5 . . . 2 4 . Fire 184 | 5 70 8 . 18 79 . . . . . 4 . Melee 23 | . . . . . . . . 2 . . 21 . Ram . | . . . . . . . . . . . . . Kick . | . . . . . . . . . . . . . Crush 11 | . 3 3 . . 5 . . . . . . . Escape Stasis . | . . . . . . . . . . . . . Rewire . | . . . . . . . . . . . . . Trap . | . . . . . . . . . . . . . Miscellaneous . | . . . . . . . . . . . . . Route ------- -11/Scrapyard -10/Materials (discovered 4 exits: [*Mat x2] / *Min x2) -10/Mines (discovered 3 exits: [*Mat x2] / *Exi) -10/Exiles -9/Mines -8/Materials -7/Factory -7/Lower Caves -7/Lower Caves (discovered 2 exits: *Fac / *Dat) -7/Data Miner -6/Proximity Caves -6/Factory -6/Extension History --------- Turn | Location | Event 25 | -11/Scrapyard | Discovered new exit (range 15) 103 | -11/Scrapyard | Entered Materials 306 | -10/Materials | Build established: Mutant 318 | -10/Materials | Discovered new exit (range 13) 503 | -10/Materials | Identified exit to Mines 757 | -10/Materials | Discovered new exit (range 3) 893 | -10/Materials | Core integrity fell below 50% 942 | -10/Materials | Repaired Lgt. Treads 1189 | -10/Materials | Entered Mines 1265 | -10/Mines | Met a Derelict bent on vengeance 1396 | -10/Mines | Learned Materials stockpile data 1446 | -10/Mines | Discovered new exit (range 7) 1566 | -10/Mines | Discovered new exit (range 15) 1660 | -10/Mines | Learned location of Storage (-7) 1719 | -10/Mines | Deemed a non-threat by the Exiles lab entrance 1719 | -10/Mines | Discovered new exit (range 5) 1729 | -10/Mines | Entered Exiles 1789 | -10/Exiles | Met 8R-AWN 1828 | -10/Exiles | Met EX-HEX 1945 | -10/Exiles | Met EX-DEC 1984 | -10/Exiles | Learned location of Zion (-6) 2027 | -10/Exiles | Met EX-BIN 2063 | -10/Exiles | Aligned with FarCom system 2065 | -10/Exiles | Given EX-Vault access code 2121 | -10/Exiles | Opened EX-Vault 2135 | -10/Exiles | Found Cloak of Protection 2138 | -10/Exiles | Found Trap Reconfigurator 2142 | -10/Exiles | Found Deploy-a-Sentry 2145 | -10/Exiles | Found Deploy-a-Sentry 2149 | -10/Exiles | Found Deploy-a-Sentry 2202 | -10/Exiles | Warned to stay clear of 0b10 Research branches 2368 | -10/Exiles | Discovered new exit (range 11) 2390 | -10/Exiles | Stole three prototypes: Cloak of Protection, Trap Reconfigurator, Deploy-a-Sentry 2390 | -10/Exiles | Entered Mines 2393 | -9/Mines | Assisted by bots powering up and referring to "LRC-V3" 2605 | -9/Mines | Excavation squad dispatched 2605 | -9/Mines | A large section of the Mines collapsed 2766 | -9/Mines | Learned Materials garrison access intel 2855 | -9/Mines | Excavation squad dispatched 2903 | -9/Mines | Discovered new exit (range 9) 2935 | -9/Mines | Met a Derelict shopkeep closing up shop 3005 | -9/Mines | Entered Materials 3005 | -8/Materials | Evolved 4 slots: Propulsion x1, Utility x3 3007 | -8/Materials | Loaded intel: 1 garrison access location 3132 | -8/Materials | Garrison activated, responded to threat 3449 | -8/Materials | Repaired Lgt. Armor Plating 3477 | -8/Materials | Repaired Lgt. Treads 3504 | -8/Materials | Repaired Lgt. Treads 3893 | -8/Materials | DAS Turret deployed 3932 | -8/Materials | Lost 3 parts (2n1u) 4185 | -8/Materials | Discovered new exit (range 4) 5004 | -8/Materials | Entered Factory 5004 | -7/Factory | Evolved 2 slots: Propulsion x1, Utility x1 5006 | -7/Factory | FarCom data flow suspended 5047 | -7/Factory | DAS Turret deployed 5051 | -7/Factory | Discovered new exit (range 15) 5066 | -7/Factory | Entered Lower Caves 5066 | -7/Lower Caves | Spotted 7G-3KA(f) 5066 | -7/Lower Caves | Spotted P3-OLA(f) 5067 | -7/Lower Caves | Encountered a Master Thief 5067 | -7/Lower Caves | Encountered a Master Thief 5067 | -7/Lower Caves | Trap Reconfigurator stolen by Master Thief 5093 | -7/Lower Caves | Spotted PJ-XF7(f) 5094 | -7/Lower Caves | Encountered a Master Thief 5124 | -7/Lower Caves | Learned Factory stockpile data 5159 | -7/Lower Caves | Discovered new exit (range 6) 5161 | -7/Lower Caves | Entered another Lower Caves area 5180 | -7/Lower Caves | Discovered new exit (range 15) 5231 | -7/Lower Caves | Learned Factory non-interactive machine intel 5232 | -7/Lower Caves | Spotted B-75 Beast 5238 | -7/Lower Caves | Discovered new exit (range 9) 5247 | -7/Lower Caves | Entered Data Miner 5247 | -7/Data Miner | Discovered new exit (range 6) 5253 | -7/Data Miner | Met Data Miner 5260 | -7/Data Miner | Learned location of Section 7 (-3) 5260 | -7/Data Miner | Acquired the access code to Warlord's prototype stash 5264 | -7/Data Miner | Received God Mode back door access code from Data Miner 5270 | -7/Data Miner | Entered Proximity Caves 5272 | -6/Proximity Caves | Attracted the attention of an 0b10 checkpoint 5274 | -6/Proximity Caves | Escorted by Enhanced Grunt 5289 | -6/Proximity Caves | Learned Factory emergency access door positions 5301 | -6/Proximity Caves | Build established: Hacker-Sprinter 5308 | -6/Proximity Caves | Attracted the attention of an 0b10 outpost 5338 | -6/Proximity Caves | Learned Factory trap positions 5385 | -6/Proximity Caves | Discovered new exit (range 10) 5387 | -6/Proximity Caves | Entered Factory 5387 | -6/Factory | Evolved 2 slots: Utility x2 5388 | -6/Factory | Loaded intel: 122 trap records 5391 | -6/Factory | Loaded intel: 193 non-interactive machine locations 5533 | -6/Factory | DAS Turret deployed 5575 | -6/Factory | Lost 5 parts (1p2n2u) 5595 | -6/Factory | Incoming investigation squad redirected 5617 | -6/Factory | Discovered new exit (range 12) 5623 | -6/Factory | Identified exit to Extension 5623 | -6/Factory | Entered Extension 5650 | -6/Extension | Lost 6 parts (1p2n3u) 5655 | -6/Extension | Self-destructed Last Messages --------------- 05608_ Seismic Detector destroyed. 05609_ Acquired 5 matter. 05609_ R-10 Processor collects Lgt. Angular Momentum Engine. 05609_ Acquired 2 matter. 05611_ K-01 Serf collects debris. 05613_ Xenon Bombardment Thruster destroyed. 05613_ Hacking Suite destroyed. 05615_ Acquired Nuclear Pulse Thruster. 05617_ ALERT: Suspicious intruders detected, dispatching Cutter reinforcements to area. 05617_ EXIT=FOUND 05619_ Hacking Suite destroyed. 05619_ Xenon Bombardment Thruster destroyed. 05619_ C-17 Slicer destroyed. 05620_ Acquired 16 matter. 05620_ Imp. Flight Unit severed. 05621_ Acquired Surge Thruster. 05623_ EXIT=IDENTIFIED: EXTENSION LOCATION=EXTENSION GOAL=ESCAPE Map ----- +----------------------------------------------------+ | ?????????????????????????????????????????????????? | | ?????????????????????????????????????????????????? | | ?????????????????????????????????????????????????? | | ?????????????????????????????????????????????????? | | ?????????????????????????????????????????????????? | | ?????????????????????????????????????????????????? | | ?????????????????????????????????????????????????? | | ?????????????????????????????????????????????????? | | ?????????????????????????????????????????????????? | | ?????????????????????????????????????????????????? | | ?????????????????????????????????????????????????? | | ?????????????????????????????????????????????????? | | ?????????????????????????????????????????????????? | | ?????????????????????????????????????????????????? | | ?????????????????????????????????????????????????? | | ?????????????????????????????????????????????????? | | ?????????????????????????????????????????????????? | | ?????????????????????????????????????????????????? | | ?????????????????????????????????????????????????? | | ?????????????????????????????????????????????????? | | ?????????????????????????????????????????????????? | | ?????????????????????????????????????????????????? | | ########################################?????????? | | ????????? | | ????????? | | @ ????????? | | ????????? | | R ????????? | | ########################################?????????? | | ?????????????????????????????????????????????????? | | ?????????????????????????????????????????????????? | | ?????????????????????????????????????????????????? | | ?????????????????????????????????????????????????? | | ?????????????????????????????????????????????????? | | ?????????????????????????????????????????????????? | | ?????????????????????????????????????????????????? | | | | | | | | | | | | | | | | | | | | | | | | | | | | | +----------------------------------------------------+ Best States ------------- Heat Dissipation 37 Energy Generation 18 Energy Capacity 310 Matter Stores 300 Matter Capacity 300 Sight Range 16 Terrain Scan Range 16 Terrain Scan Density 10 Additional Mass Support 6 Armor Coverage 150 Core Shielding 20 Power Shielding 66 Propulsion Shielding 66 Evasion (%) 64 Targeting Accuracy 12 Recoil Reduction 3 Offensive Hacking 40 Defensive Hacking 12 Item Schematics ----------------- Aerolev Unit | -8/Materials | Scanalyzed Hacking Suite | -8/Materials | Scanalyzed Combat Drone Bay | -7/Data Miner | Free Lgt. Regenerative Plating | -7/Data Miner | Free Biomechanical Wings | -7/Data Miner | Free Gravity Neutralizer | -7/Data Miner | Free Imp. Heavy Laser | -7/Data Miner | Free Linear Gravjet | -7/Data Miner | Free Imp. Recalibrator | -7/Data Miner | Free Imp. Remote Datajack | -7/Data Miner | Free Force Field | -7/Data Miner | Free Imp. Corruption Screen | -7/Data Miner | Free Hvy. Gauss Cannon | -7/Data Miner | Free Myomer Leg | -7/Data Miner | Free Robot Schematics ------------------ A-15 Conveyor | -7/Data Miner | Free G-50 Soldier | -7/Data Miner | Free W-25 Informer | -7/Data Miner | Free R-10 Processor | -7/Data Miner | Free I-47 Archangel | -7/Data Miner | Free Fabricated ------------ Nothing Alien Tech Used ----------------- None Achievements -------------- None Challenges ------------ None Game ------ Seed ShrapnelSuspensionThruster Manual? 0 Play Time 00:42:07 Cumulative 477.4 hours Start 2022.03.03 @ 21:27:07 End 2022.03.06 @ 10:03:52 Sessions 11 Manual Loads 0 Difficulty Rogue Special Mode None Game No. 468 Rogue 253 Adventurer 112 Explorer 103 Win Type - Total 31 Types 23/0/5/2/0/0/0/1/0 Lore% 85 Gallery% 89 Achievement% 80 Wizard Run 0 Options --------- ASCII 0 Keyboard 0 Movement Vi Keybinds 1 Fullscreen 2 Font 18/TerminusBold Map View 76x50 Tactical HUD 1 Map Filters NONE Filters NONE Steam X RUN: 9f9dced2-47d0-4c94-a664-62f8a254f549